bitfinex/quotes_SOLUSD_20251204
["timestamp","ask_amount","ask_price","bid_price","bid_amount"]
[1764890534584,3.49016385,139.11,139.07,15.80040498]
[1764890534904,3.49016385,139.11,139.08,0.71]
[1764890535311,10.67922581,139.11,139.08,0.71]
[1764890536409,9.96922581,139.11,139.08,0.71]
[1764890536801,10.67922581,139.11,139.08,0.71]
[1764890537596,9.96922581,139.11,139.08,0.71]
[1764890540412,7.18906196,139.11,139.08,0.71]
[1764890540611,11.98876302,139.11,139.08,0.71]
[1764890542110,15.47892687,139.11,139.08,0.71]
[1764890542313,10.67922581,139.11,139.08,0.71]
[1764890542909,9.96922581,139.11,139.08,0.71]
[1764890546112,10.67922581,139.11,139.08,0.71]
[1764890547118,0.71,139.12,139.08,0.71]
[1764890547302,7.58119198,139.11,139.08,0.71]
[1764890548000,8.29119198,139.11,139.08,0.71]
[1764890548198,10.67903985,139.11,139.08,0.71]
[1764890551619,7.188876,139.11,139.08,0.71]
[1764890551804,4.80343504,139.11,139.08,7.90010303]
[1764890552004,4.80343504,139.11,139.09,0.71]
[1764890556827,7.58359889,139.11,139.09,0.71]
[1764890559230,2.78016385,139.11,139.09,0.71]
[1764890559414,7.58517342,139.11,139.09,0.71]
[1764890559927,4.80500957,139.11,139.09,0.71]
[1764890562545,4.80500957,139.11,139.09,7.8994122]
[1764890562713,4.80534407,139.12,139.09,7.8994122]
[1764890562915,4.80553577,139.12,139.1,8.55]
[1764890563143,4.80553577,139.13,139.1,11.33016385]
[1764890563319,4.80553577,139.14,139.11,0.72]
[1764890563514,4.80553577,139.13,139.11,0.72]
[1764890563714,4.80553577,139.14,139.11,0.72]
[1764890563914,4.80553577,139.13,139.11,0.72]
[1764890566538,11.99310701,139.13,139.11,0.72]
[1764890569418,11.99310701,139.13,139.1,15.08880588]
[1764890569419,16.33358914,139.13,139.1,7.9]
[1764890569623,16.33358914,139.13,139.07,95.88476751]
[1764890569624,4.34048213,139.11,139.09,7.9]
[1764890569847,9.85417691,139.11,139.09,7.9]
[1764890570049,5.05048213,139.11,139.09,7.9]
[1764890570546,5.05048213,139.1,139.09,7.9]
[1764890570731,5.05048213,139.11,139.09,7.9]
[1764890571129,9.85553587,139.11,139.09,7.9]
[1764890571333,5.05048213,139.11,139.09,7.9]
[1764890571631,7.1890726,139.1,139.09,7.9]
[1764890571941,7.8990726,139.1,139.08,0.72]
[1764890572441,7.8990726,139.1,139.07,8.62]
[1764890573050,7.1890726,139.1,139.08,0.72]
[1764890574944,12.23955473,139.1,139.07,8.62]
[1764890575325,11.52955473,139.1,139.07,7.9]
[1764890575547,9.85696799,139.09,139.07,7.9]
[1764890575749,9.1465894,139.08,139.06,0.1]
[1764890576040,17.04670823,139.08,139.06,0.1]
[1764890576241,12.24060096,139.08,139.06,0.1]
[1764890576450,5.05048213,139.07,139.06,0.1]
[1764890577368,9.85402573,139.07,139.06,0.1]
[1764890578055,17.04464915,139.07,139.06,0.1]
[1764890578550,9.85402573,139.07,139.06,0.1]
[1764890578749,5.05048213,139.07,139.06,0.1]
[1764890578955,4.34048213,139.08,139.06,0.82]
[1764890580143,5.05048213,139.08,139.06,0.82]
[1764890580331,5.05048213,139.08,139.06,7.29110729]
[1764890582042,4.34048213,139.08,139.06,0.1]
[1764890582248,5.05048213,139.08,139.06,0.82]
[1764890583253,4.34048213,139.09,139.06,0.82]
[1764890583428,4.34048213,139.09,139.06,8.01105622]
[1764890583632,5.05048213,139.09,139.06,8.01105622]
[1764890583835,4.34048213,139.08,139.06,8.01105622]
[1764890584652,4.34048213,139.09,139.07,0.72]
[1764890585153,7.89917523,139.1,139.07,0.72]
[1764890585154,5.05048213,139.1,139.07,7.91055663]
[1764890585560,9.13931679,139.1,139.08,0.72]
[1764890585859,4.34048213,139.1,139.08,0.72]
[1764890586238,5.05048213,139.1,139.07,7.19055663]
[1764890586440,5.05048213,139.1,139.07,7.91055663]
[1764890587136,4.34048213,139.1,139.08,0.72]
[1764890588256,9.13964784,139.11,139.08,0.72]
[1764890588560,4.79916571,139.11,139.08,0.72]
[1764890588863,4.79916571,139.12,139.09,7.9]
[1764890589250,9.13964784,139.12,139.1,0.72]
[1764890590164,9.84964784,139.12,139.1,0.72]
[1764890590545,17.03778607,139.12,139.1,0.72]
[1764890590762,12.23862036,139.12,139.1,0.72]
[1764890591059,7.89813823,139.12,139.09,7.9]
[1764890591251,4.34048213,139.11,139.09,8.62]
[1764890591453,12.23908473,139.11,139.09,7.9]
[1764890591655,12.23908473,139.11,139.09,8.62]
[1764890592747,11.52908473,139.11,139.09,7.9]
[1764890592949,11.52908473,139.11,139.09,8.56]
[1764890593961,12.17908473,139.11,139.09,8.56]
[1764890594268,11.52908473,139.11,139.09,8.56]
[1764890594861,7.1886026,139.11,139.09,8.56]
[1764890595471,11.5286798,139.12,139.1,0.66]
[1764890595662,12.1786798,139.12,139.09,7.9]
[1764890595859,11.5286798,139.12,139.1,0.66]
[1764890596152,7.83819767,139.12,139.1,0.66]
[1764890596359,12.63745246,139.12,139.1,0.66]
[1764890596570,11.98745246,139.12,139.1,0.66]
[1764890597167,7.18819767,139.12,139.1,0.66]
[1764890600172,7.18700589,139.14,139.1,7.84898228]
[1764890600359,4.34048213,139.13,139.1,7.84898228]
[1764890600560,9.14238026,139.13,139.11,0.66]
[1764890600868,4.80189813,139.13,139.11,0.66]
[1764890602671,12.17748802,139.14,139.11,0.66]
[1764890604874,7.18700589,139.14,139.11,0.66]
[1764890605080,7.18700589,139.14,139.11,7.84836488]
[1764890605081,4.80001318,139.14,139.11,7.84836488]
[1764890605371,11.98652533,139.15,139.11,7.84836488]
[1764890605545,11.98652533,139.15,139.12,0.66]
[1764890605752,109.8861858,139.16,139.12,8.56]
[1764890605979,109.8861858,139.16,139.12,12.90048213]
[1764890606157,109.8861858,139.16,139.13,0.66]
[1764890606357,7.8361858,139.16,139.13,0.66]
[1764890606565,12.63592615,139.16,139.13,0.66]
[1764890607177,11.98592615,139.16,139.13,0.66]
[1764890607473,12.63592615,139.16,139.13,0.66]
[1764890609277,7.1861858,139.16,139.13,0.66]
[1764890609466,7.8361858,139.16,139.13,0.66]
[1764890610762,30.59689466,139.16,139.13,0.66]
[1764890610961,25.15111825,139.16,139.13,0.66]
[1764890611151,25.80111825,139.16,139.13,0.66]
[1764890612871,7.8361858,139.16,139.13,0.66]
[1764890613279,4.34048213,139.14,139.11,0.66]
[1764890613473,4.34048213,139.14,139.09,19.43002821]
[1764890613670,4.79426433,139.15,139.12,13.15042705]
[1764890613872,0.65,139.19,139.14,4.34048213]
[1764890614071,7.18528733,139.18,139.15,4.34048213]
[1764890614462,7.18528733,139.18,139.16,0.66]
[1764890616086,0.65,139.17,139.14,0.66]
[1764890619281,30.13812037,139.18,139.14,0.66]
[1764890621896,0.65,139.17,139.14,0.66]
[1764890623070,4.99048213,139.17,139.14,0.66]
[1764890624693,25.15090543,139.16,139.14,0.66]
[1764890633510,25.86090543,139.16,139.14,0.66]
[1764890633804,3.48655765,139.15,139.11,0.71]
[1764890634109,2.77655765,139.14,139.11,8.61]
[1764890634296,3.48655765,139.14,139.11,8.61]
[1764890635609,7.18752246,139.13,139.11,8.61]
[1764890636706,7.89752246,139.13,139.11,8.61]
[1764890637817,7.18752246,139.13,139.11,8.61]
[1764890638182,7.12963329,139.13,139.11,8.61]
[1764890639708,27.87499709,139.13,139.09,0.71]
[1764890639893,2.77655765,139.11,139.06,10.06751918]
[1764890640099,2.77655765,139.11,139.08,8.61]
[1764890640288,3.48655765,139.11,139.08,8.61]
[1764890641812,7.1890726,139.1,139.08,8.61]
[1764890643840,7.18873885,139.11,139.09,0.71]
[1764890644118,9.9652965,139.11,139.09,0.71]
[1764890644818,10.6752965,139.11,139.08,8.61]
[1764890645698,9.9658876,139.1,139.08,8.61]
[1764890648723,2.77655765,139.09,139.08,8.61]
[1764890651004,2.77655765,139.09,139.06,7.29091312]
[1764890651005,10.67614712,139.09,139.06,0.1]
[1764890651211,2.77655765,139.07,139.06,0.1]
[1764890652613,10.67718107,139.07,139.06,0.1]
[1764890652917,7.90062342,139.07,139.06,0.1]
[1764890653124,10.67718107,139.07,139.06,0.1]
[1764890655709,3.48655765,139.07,139.06,0.1]
[1764890657833,2.77655765,139.07,139.06,0.78]
[1764890658727,2.77655765,139.08,139.06,0.78]
[1764890659309,2.77655765,139.08,139.06,8.68]
[1764890659514,2.77655765,139.08,139.07,0.68]
[1764890659715,2.77655765,139.08,139.06,15.87106792]
[1764890660927,3.45655765,139.08,139.06,8.0]
[1764890661320,2.77655765,139.07,139.06,8.0]
[1764890661524,2.77655765,139.07,139.06,0.1]
[1764890662233,3.45655765,139.07,139.06,0.1]
[1764890662733,2.77655765,139.07,139.06,0.78]
[1764890663133,2.77655765,139.07,139.06,0.1]
[1764890663309,0.68,139.1,139.06,0.78]
[1764890663829,2.77655765,139.09,139.06,0.78]
[1764890664132,2.77655765,139.09,139.07,7.19062342]
[1764890664325,3.45655765,139.09,139.07,7.19062342]
[1764890664525,3.45655765,139.1,139.07,7.87062342]
[1764890664929,2.77655765,139.09,139.07,7.87062342]
[1764890666031,2.77655765,139.1,139.06,25.26899179]
[1764890666221,2.77655765,139.11,139.08,0.68]
[1764890666710,9.96511852,139.11,139.08,0.68]
[1764890666916,10.64511852,139.11,139.08,0.68]
[1764890668727,3.45655765,139.11,139.08,7.87008967]
[1764890669441,18.64689393,139.15,139.09,0.68]
[1764890669740,2.77655765,139.14,139.1,7.9]
[1764890670046,2.77655765,139.13,139.1,7.9]
[1764890670336,9.9642378,139.13,139.1,7.9]
[1764890670642,10.6442378,139.13,139.1,8.58]
[1764890671432,10.6442378,139.13,139.1,7.9]
[1764890671433,0.68,139.12,139.1,7.9]
[1764890671736,2.77655765,139.11,139.1,7.9]
[1764890672639,9.96511346,139.11,139.1,7.9]
[1764890673135,10.64511346,139.11,139.08,0.68]
[1764890676239,2.77655765,139.1,139.07,7.9]
[1764890676437,2.77655765,139.1,139.07,15.09061277]
[1764890676746,2.77655765,139.1,139.08,0.68]
[1764890679245,9.96581929,139.1,139.08,0.68]
[1764890680639,9.96581929,139.1,139.07,15.09053498]
[1764890680845,7.86926164,139.1,139.07,15.77053498]
[1764890681348,7.86926164,139.1,139.08,0.68]
[1764890681844,7.18926164,139.1,139.08,0.68]
[1764890683345,10.64534653,139.11,139.08,0.68]
[1764890688435,12.21105702,139.11,139.08,0.68]
[1764890689051,12.19105702,139.11,139.08,0.68]
[1764890694061,4.80595942,139.1,139.08,0.68]
[1764890695540,12.19105702,139.11,139.08,0.68]
[1764890696425,4.80661377,139.1,139.08,0.68]
[1764890697142,5.46661377,139.1,139.08,0.68]
[1764890697856,5.46672076,139.1,139.08,0.68]
[1764890698060,4.80672076,139.1,139.08,7.87008483]
[1764890698762,5.00226814,139.09,139.06,0.1]
[1764890699054,4.34226814,139.07,139.06,0.1]
[1764890699258,18.61893382,139.07,139.06,0.1]
[1764890700129,25.80955724,139.07,139.06,0.1]
[1764890700332,42.11842124,139.07,139.06,0.1]
[1764890700539,48.12682219,139.07,139.06,0.1]
[1764890701061,42.11842124,139.07,139.06,0.1]
[1764890701629,50.01842124,139.07,139.06,0.1]
[1764890703457,9.8089889,139.07,139.06,0.1]
[1764890703762,5.00226814,139.07,139.06,0.1]
[1764890703961,9.8089889,139.07,139.06,0.1]
[1764890706157,9.79680608,139.07,139.06,0.1]
[1764890707161,9.13680608,139.07,139.06,0.1]
[1764890707380,4.34226814,139.08,139.06,0.77]
[1764890707555,4.7932353,139.08,139.06,0.77]
[1764890707747,16.65870885,139.11,139.06,0.77]
[1764890707748,5.00226814,139.1,139.06,0.77]
[1764890707949,9.79623138,139.1,139.06,0.77]
[1764890709366,9.13623138,139.1,139.07,7.19062342]
[1764890709539,32.05696424,139.12,139.07,7.19062342]
[1764890709741,9.79651181,139.11,139.08,0.67]
[1764890710850,9.13651181,139.11,139.07,15.09062342]
[1764890711163,4.34226814,139.1,139.08,0.67]
[1764890711547,4.34226814,139.1,139.07,7.9]
[1764890711548,5.00226814,139.09,139.07,7.9]
[1764890711864,4.34226814,139.08,139.06,0.1]
[1764890712038,5.00226814,139.08,139.06,0.1]
[1764890712450,0.66,139.08,139.06,0.1]
[1764890713043,4.34226814,139.09,139.06,0.76]
[1764890713449,11.53155697,139.1,139.06,0.76]
[1764890713656,12.24155697,139.1,139.06,0.76]
[1764890714242,4.34226814,139.09,139.06,0.76]
[1764890714452,12.24196694,139.09,139.06,0.76]
[1764890714766,5.05226814,139.08,139.06,0.1]
[1764890715441,4.34226814,139.08,139.06,0.76]
[1764890715642,7.8996988,139.09,139.06,0.76]
[1764890715865,4.34226814,139.08,139.06,0.76]
[1764890716061,11.53216125,139.09,139.06,0.76]
[1764890716245,12.24216125,139.09,139.06,0.76]
[1764890716563,7.89989311,139.09,139.06,0.76]
[1764890716765,11.53216125,139.09,139.06,7.95108832]
[1764890716976,5.50272749,139.1,139.06,7.95108832]
[1764890716977,11.53156211,139.1,139.06,7.95108832]
[1764890717139,4.79287044,139.09,139.07,0.66]
[1764890717846,9.13513858,139.1,139.07,0.66]
[1764890718147,9.84513858,139.1,139.07,0.66]
[1764890718864,5.05226814,139.09,139.06,0.1]
[1764890719068,5.05226814,139.09,139.06,0.76]
[1764890719362,4.34226814,139.09,139.06,0.1]
[1764890719554,5.05226814,139.09,139.06,0.76]
[1764890720771,5.05226814,139.09,139.06,7.95112151]
[1764890720950,17.03574535,139.09,139.06,7.95112151]
[1764890721150,12.24195832,139.09,139.06,7.95112151]
[1764890721360,4.34226814,139.09,139.07,0.66]
[1764890721584,17.03556541,139.1,139.07,0.66]
[1764890721880,4.79398866,139.09,139.07,0.66]
[1764890722665,12.24157675,139.1,139.07,0.66]
[1764890722882,7.18870652,139.11,139.07,7.85046443]
[1764890723049,4.79439193,139.11,139.07,20.09273257]
[1764890723250,4.79439193,139.11,139.08,0.66]
[1764890723845,109.88822935,139.12,139.08,0.66]
[1764890724455,109.88822935,139.12,139.08,12.19218425]
[1764890724456,7.18822935,139.12,139.08,12.19218425]
[1764890724868,11.98347866,139.12,139.09,0.66]
[1764890725075,7.18822935,139.12,139.09,0.66]
[1764890725580,7.18774862,139.13,139.09,5.00226814]
[1764890725785,11.98322197,139.13,139.09,5.00226814]
[1764890726084,17.03549011,139.13,139.1,0.66]
[1764890726298,12.24001676,139.13,139.1,0.66]
[1764890727453,29.49882291,139.13,139.08,7.18991611]
[1764890727674,5.50501466,139.12,139.09,0.66]
[1764890729282,12.69335251,139.12,139.09,0.66]
[1764890731583,17.03562065,139.12,139.09,0.66]
[1764890731785,12.24060599,139.12,139.09,0.66]
[1764890731958,7.89833785,139.12,139.09,0.66]
[1764890732158,12.69313397,139.12,139.09,0.66]
[1764890734269,17.03540211,139.12,139.09,0.66]
[1764890734468,12.24060599,139.12,139.09,0.66]
[1764890736785,7.18833785,139.12,139.09,0.66]
[1764890741693,12.2399558,139.13,139.09,0.66]
[1764890742761,30.20876195,139.13,139.09,0.66]
[1764890742967,11.5307306,139.12,139.09,0.66]
[1764890743666,12.1907306,139.12,139.09,0.66]
[1764890744185,29.50082835,139.12,139.07,19.43268895]
[1764890744397,0.66,139.11,139.08,0.71]
[1764890744569,4.34226814,139.09,139.06,0.81]
[1764890744767,4.34226814,139.09,139.06,0.1]
[1764890745084,12.19252374,139.08,139.06,0.1]
[1764890745269,7.8502556,139.08,139.06,0.81]
[1764890745471,7.1898364,139.09,139.06,0.81]
[1764890745685,12.19210454,139.09,139.06,0.81]
[1764890746388,11.53210454,139.09,139.06,0.1]
[1764890746567,12.19210454,139.09,139.06,0.81]
[1764890748393,12.19210454,139.09,139.06,0.1]
[1764890748588,11.53210454,139.09,139.06,0.81]
[1764890748767,12.19210454,139.09,139.06,0.81]
[1764890749687,11.53210454,139.09,139.06,0.81]
[1764890749991,4.34226814,139.08,139.06,0.81]
[1764890750376,2.78021428,139.08,139.06,0.1]
[1764890750678,0.66,139.07,139.06,0.1]
[1764890751488,3.44021428,139.07,139.06,0.1]
[1764890751864,24.23823196,139.07,139.06,0.1]
[1764890756093,23.57823196,139.07,139.06,0.1]
[1764890756297,16.38760854,139.07,139.06,0.1]
[1764890756485,17.04760854,139.07,139.06,0.1]
[1764890757711,24.23823196,139.07,139.06,0.1]
[1764890759212,17.04760854,139.07,139.06,0.1]
[1764890761005,7.57766362,139.07,139.06,0.81]
[1764890761509,2.78021428,139.08,139.06,0.81]
[1764890762509,2.78021428,139.07,139.06,0.1]
[1764890763081,2.78021428,139.08,139.06,0.81]
[1764890763280,7.5746845,139.08,139.06,8.00108189]
[1764890763509,2.78021428,139.08,139.06,0.81]
[1764890764545,2.78021428,139.09,139.06,8.00092656]
[1764890764816,7.57457381,139.09,139.06,8.00092656]
[1764890764978,2.78021428,139.09,139.07,0.71]
[1764890765410,2.78021428,139.09,139.07,7.90046611]
[1764890765996,10.62982194,139.09,139.06,7.29101144]
[1764890766183,10.62982194,139.09,139.06,8.00101144]
[1764890766184,3.44021428,139.09,139.06,8.00101144]
[1764890766384,3.44021428,139.08,139.06,0.1]
[1764890767081,3.44021428,139.07,139.06,0.1]
[1764890767280,2.78021428,139.07,139.06,0.1]
[1764890767602,3.44021428,139.07,139.06,0.1]
[1764890769108,2.78021428,139.07,139.06,0.1]
[1764890769304,9.97039272,139.08,139.06,0.1]
[1764890769604,9.97039272,139.08,139.06,0.81]
[1764890770408,9.96981571,139.09,139.06,0.81]
[1764890770610,4.79426287,139.08,139.06,0.81]
[1764890771106,4.79452331,139.08,139.06,0.81]
[1764890771883,9.96981571,139.09,139.06,0.81]
[1764890772910,2.78021428,139.08,139.06,0.81]
[1764890773907,3.45021428,139.08,139.06,0.1]
[1764890774090,3.45021428,139.07,139.06,0.1]
[1764890775308,10.6408377,139.07,139.06,0.1]
[1764890777309,2.78021428,139.07,139.06,0.79]
[1764890782920,9.97038504,139.08,139.06,0.79]
[1764890783324,2.78021428,139.09,139.06,7.98108777]
[1764890783497,3.45021428,139.08,139.06,0.1]
[1764890783703,2.78021428,139.07,139.06,0.1]
[1764890784137,3.45021428,139.07,139.06,0.1]
[1764890784609,2.78021428,139.07,139.06,0.1]
[1764890785616,7.58268479,139.07,139.06,0.1]
[1764890787624,15.44330821,139.07,139.06,0.1]
[1764890788135,14.77330821,139.07,139.06,0.1]
[1764890790738,7.58268479,139.07,139.06,0.79]
[1764890790931,4.80247051,139.07,139.06,0.79]
[1764890791938,4.80247051,139.07,139.06,7.98114051]
[1764890792146,4.80247051,139.08,139.06,7.98114051]
[1764890792457,4.80247051,139.07,139.06,7.29114051]
[1764890792647,4.80247051,139.08,139.06,7.29114051]
[1764890792813,4.80247051,139.07,139.06,7.29114051]
[1764890793022,4.80247051,139.08,139.06,7.29114051]
[1764890793215,4.80247051,139.07,139.06,7.29114051]
[1764890793417,4.80247051,139.08,139.07,0.69]
[1764890799733,11.99269825,139.08,139.06,8.69]
[1764890800447,11.99269825,139.08,139.06,0.79]
[1764890800649,9.97044202,139.08,139.06,0.79]
[1764890801057,10.64044202,139.08,139.06,0.79]
[1764890801430,10.64044202,139.08,139.06,0.1]
[1764890801636,10.64044202,139.08,139.06,0.79]
[1764890801839,10.64044202,139.08,139.06,0.1]
[1764890802140,10.64044202,139.08,139.06,0.79]
[1764890802758,10.64044202,139.08,139.06,0.1]
[1764890802950,11.99789695,139.07,139.06,0.1]
[1764890803657,4.80727353,139.07,139.06,0.75]
[1764890804858,4.80727353,139.07,139.06,0.1]
[1764890806656,7.58748781,139.07,139.06,0.1]
[1764890806848,15.44811123,139.07,139.06,0.1]
[1764890807156,14.77811123,139.07,139.06,0.1]
[1764890807354,15.44811123,139.07,139.06,0.1]
[1764890809656,11.99789695,139.07,139.06,0.75]
[1764890809865,14.77811123,139.07,139.06,0.75]
[1764890810458,16.34272133,139.07,139.06,0.75]
[1764890813957,9.15209791,139.07,139.06,0.75]
[1764890814266,4.80727353,139.07,139.06,0.75]
[1764890821347,4.80727353,139.07,139.06,8.65]
[1764890822965,4.80727353,139.07,139.06,15.84114051]
[1764890823167,17.52387134,139.11,139.06,15.84114051]
[1764890823467,4.80894758,139.1,139.07,0.65]
[1764890823663,4.80894758,139.09,139.07,0.65]
[1764890823857,4.80894758,139.08,139.07,0.65]
[1764890824364,4.80894758,139.08,139.07,7.84062342]
[1764890824763,4.80894758,139.08,139.07,7.9]
[1764890824764,11.99906966,139.08,139.07,7.9]
[1764890825067,11.99906966,139.08,139.06,8.65]
[1764890825267,0.67,139.07,139.06,0.1]
[1764890825446,9.82245515,139.07,139.06,0.1]
[1764890825858,9.15245515,139.07,139.06,0.1]
[1764890826257,17.01307857,139.07,139.06,0.1]
[1764890827060,16.34307857,139.07,139.06,0.1]
[1764890827494,11.99825419,139.07,139.06,0.1]
[1764890827656,9.15245515,139.07,139.06,0.1]
[1764890828965,16.34307857,139.07,139.06,0.1]
[1764890829477,11.99825419,139.07,139.06,0.1]
[1764890830669,4.80763077,139.07,139.06,0.1]
[1764890831877,11.99825419,139.07,139.06,0.1]
[1764890832069,16.34307857,139.07,139.06,0.1]
[1764890834076,11.99825419,139.07,139.06,0.1]
[1764890837377,4.80763077,139.07,139.06,0.79]
[1764890837861,4.80763077,139.07,139.06,0.1]
[1764890838066,11.99825419,139.07,139.06,0.1]
[1764890839576,17.02307857,139.07,139.06,0.1]
[1764890843096,25.83302349,139.07,139.06,0.1]
[1764890843591,40.92563536,139.07,139.06,0.1]
[1764890844266,46.91590534,139.07,139.06,0.1]
[1764890850097,40.92563536,139.07,139.06,0.1]
[1764890851694,4.34482438,139.09,139.06,0.79]
[1764890851996,4.79642179,139.08,139.06,0.79]
[1764890852174,9.14124617,139.08,139.06,0.79]
[1764890852879,4.34482438,139.07,139.06,0.79]
[1764890853275,9.14124617,139.07,139.06,0.79]
[1764890855404,4.79642179,139.07,139.06,0.79]
[1764890855709,9.14124617,139.07,139.06,0.79]
[1764890857610,4.79642179,139.07,139.06,0.79]
[1764890858519,11.53507851,139.08,139.06,0.79]
[1764890859101,119.008864,139.1,139.06,0.79]
[1764890859307,9.14129109,139.09,139.06,0.79]
[1764890859798,9.14129109,139.08,139.06,0.79]
[1764890860112,4.34482438,139.07,139.06,0.79]
[1764890860986,9.1411303,139.08,139.06,0.79]
[1764890862215,16.33143936,139.08,139.06,0.79]
[1764890862512,4.34482438,139.08,139.06,0.79]
[1764890862713,9.14126372,139.08,139.06,0.79]
[1764890868694,16.33145009,139.08,139.06,0.79]
[1764890868888,11.53501075,139.08,139.06,0.79]
[1764890869412,11.53501075,139.08,139.06,0.1]
[1764890869715,12.18501075,139.08,139.06,0.77]
[1764890870328,12.18501075,139.08,139.06,0.1]
[1764890870621,12.18501075,139.08,139.06,0.77]
[1764890871218,4.79709172,139.07,139.06,0.77]
[1764890871423,4.79719786,139.07,139.06,0.77]
[1764890873428,10.62043255,139.09,139.06,0.77]
[1764890873717,4.797234,139.08,139.06,0.77]
[1764890878303,11.98737463,139.08,139.06,0.77]
[1764890878719,7.19014063,139.08,139.06,0.77]
[1764890878928,11.98586173,139.08,139.06,0.77]
[1764890883014,7.19014063,139.08,139.06,0.77]
[1764890883527,11.9857523,139.08,139.06,0.77]
[1764890887631,2.78059171,139.09,139.06,7.96111642]
[1764890887815,4.79528994,139.09,139.06,7.96111642]
[1764890888011,7.57588165,139.11,139.07,0.67]
[1764890888315,2.78059171,139.08,139.06,0.1]
[1764890888634,3.43059171,139.08,139.06,0.1]
[1764890888834,0.65,139.08,139.06,0.1]
[1764890889538,7.84046896,139.08,139.06,0.77]
[1764890890529,30.61209006,139.08,139.06,0.1]
[1764890890723,25.81573499,139.08,139.06,0.1]
[1764890891437,4.79703745,139.07,139.06,0.1]
[1764890891640,11.98766087,139.07,139.06,0.1]
[1764890892035,7.84036329,139.08,139.06,0.1]
[1764890892339,12.63758691,139.08,139.06,0.1]
[1764890893038,12.63758691,139.08,139.06,0.77]
[1764890894325,4.79722362,139.08,139.06,7.96109481]
[1764890894513,4.79722362,139.09,139.06,7.96109481]
[1764890894720,4.79722362,139.08,139.07,0.67]
[1764890894920,11.98682108,139.09,139.07,0.67]
[1764890895119,4.79722362,139.08,139.07,0.67]
[1764890899546,4.79722362,139.08,139.07,7.86062342]
[1764890899746,4.79722362,139.08,139.07,0.67]
[1764890902042,4.79722362,139.09,139.07,0.67]
[1764890902249,7.18921949,139.1,139.08,7.9]
[1764890902442,4.80527543,139.09,139.08,7.9]
[1764890903147,4.80527543,139.09,139.08,8.57]
[1764890905656,4.80527543,139.1,139.08,8.57]
[1764890905953,4.80527543,139.09,139.08,7.9]
[1764890906136,11.99437114,139.1,139.08,7.9]
[1764890906449,4.80527543,139.09,139.08,7.9]
[1764890907156,7.18909571,139.1,139.08,7.9]
[1764890907652,7.18909571,139.1,139.09,0.67]
[1764890907821,11.99058154,139.1,139.09,0.67]
[1764890908643,7.18909571,139.1,139.09,0.67]
[1764890908845,4.80148583,139.1,139.09,0.67]
[1764890912429,9.96930224,139.11,139.09,0.67]
[1764890917668,10.63930224,139.11,139.09,0.67]
[1764890920165,7.85871053,139.11,139.09,0.67]
[1764890920366,12.65583523,139.11,139.09,0.67]
[1764890920943,11.98583523,139.11,139.09,0.67]
[1764890927476,12.66583523,139.11,139.09,0.67]
[1764890934779,11.98583523,139.11,139.09,0.67]
[1764890935085,7.18871053,139.11,139.09,0.67]
[1764890935585,4.79311239,139.12,139.09,7.85956074]
[1764890935777,11.98128305,139.12,139.09,7.85956074]
[1764890935972,7.18817066,139.12,139.1,0.7]
[1764890936482,11.98146935,139.12,139.1,0.7]
[1764890937083,12.66146935,139.12,139.1,0.7]
[1764890937586,5.47329869,139.11,139.08,8.6]
[1764890937797,5.47329869,139.11,139.09,0.7]
[1764890939688,12.66201771,139.11,139.07,15.090393]
[1764890939897,17.0038629,139.11,139.08,8.6]
[1764890940189,12.21056421,139.11,139.08,8.6]
[1764890940393,0.68,139.1,139.08,8.6]
[1764890940580,29.50195375,139.11,139.08,8.6]
[1764890940787,4.79767923,139.1,139.08,8.6]
[1764890941489,11.98705633,139.1,139.08,8.6]